Cogmind - Beta 15 @@@ ROGUE MODE // 2025.08.20 @ 17:08:41 Player: shapeshifter Result: Self-destructed Performance ------------- Evolutions (3) 1500 Regions Visited (6) 1200 Robots Destroyed (37) 185 Value Destroyed (1010) 1010 Prototype IDs (25) 500 Alien Tech Used (0) 0 Bonus (451) 451 TOTAL SCORE: 4846 Bonus ------- High Alert Combat Kills 15 Follower Combat Kills 136 Aligned with FarCom 300 Cogmind --------- Core Integrity 501/700 Matter 190/300 Energy 85/100 System Corruption 11% Temperature Cool (20) Movement Treading (170) Location -7/Factory Parts ------- > --- POWER (1) -------- (None) > --- PROPULSION (3) --- Armored Treads Armored Treads Armored Treads > --- UTILITY (7) ------ Lightpack 2.0 > --- WEAPON (2) ------- (None) > --- INVENTORY (40) --- Heavy Ion Engine Wheel Improved Cooling System Improved Cooling System Large Storage Unit Huge Storage Unit Advanced Visual Processing Unit Improved Terrain Scanner Advanced Targeting Computer Core Analyzer Improved Propulsion Shielding Shock Rifle Heavy EM Shotgun Heavy EM Shotgun Heavy Particle Cannon Heavy Particle Cannon Heavy Particle Cannon Remote Datajack Heavy Flail Peak State ------------ > --- POWER ------------ Heavy Ion Engine > --- PROPULSION ------- Armored Treads Armored Treads Medium Treads > --- UTILITY ---------- Lightpack 2.0 Improved Terrain Scanner Advanced Terrain Scan Processor Hacking Suite Hacking Suite > --- WEAPON ----------- Gauss Rifle Shock Bomb Launcher > --- INVENTORY -------- Heavy Ion Engine Armored Treads Armored Treads Armored Treads Wheel Improved Cooling System Improved Cooling System Large Storage Unit Huge Storage Unit Advanced Visual Processing Unit Improved Terrain Scanner Advanced Targeting Computer Core Analyzer Improved Propulsion Shielding Hardened Heavy Armor Plating Improved Light Armor Plating Shock Rifle Heavy EM Shotgun Heavy EM Shotgun Heavy Particle Cannon Heavy Particle Cannon Heavy Particle Cannon Assault Cannon Shock Bomb Launcher Shock Bomb Launcher Remote Datajack Plasma Flamer Heavy Flail [Rating: 72] Favorites ----------- Power Light Ion Engine Engine Light Ion Engine Propulsion Light Treads Treads Light Treads Utility Seismic Detector Device Seismic Detector Storage Large Storage Unit Processor Terrain Scan Processor Hackware Hacking Suite Protection Improved Light Armor Plating Weapon Assault Rifle Energy Gun Heavy EM Shotgun Energy Cannon Heavy Particle Cannon Ballistic Gun Assault Rifle Ballistic Cannon Assault Cannon Launcher Shock Bomb Launcher Special Weapon Plasma Flamer Impact Weapon Heavy Flail Build | -11 -10 -10 -10 -9 -8 -7 ------- Run | Yrd Mat Min Exi Min Mat Fac Slots Evolved 6 | . . . . . 4 2 Power . | . . . . . . . Propulsion 1 | . . . . . 1 . Utility 5 | . . . . . 3 2 Weapon . | . . . . . . . Parts Attached 37 | 7 2 1 . 2 8 17 Power 3 | 1 . 1 . . . 1 Engine 3 | 1 . 1 . . . 1 Core . | . . . . . . . Reactor . | . . . . . . . Propulsion 8 | 2 . . . . 4 2 Treads 8 | 2 . . . . 4 2 Leg . | . . . . . . . Wheel . | . . . . . . . Hover . | . . . . . . . Flight . | . . . . . . . Utility 12 | 2 2 . . . 3 5 Device 2 | 1 . . . . 1 . Storage 3 | 1 1 . . . 1 . Processor 3 | . 1 . . . 1 1 Hackware 2 | . . . . . . 2 Protection 2 | . . . . . . 2 Artifact . | . . . . . . . Weapon 14 | 2 . . . 2 1 9 Energy Gun 2 | . . . . . . 2 Energy Cannon 2 | . . . . 1 1 . Ballistic Gun 4 | 2 . . . 1 . 1 Ballistic Cannon 1 | . . . . . . 1 Launcher 3 | . . . . . . 3 Special Weapon 1 | . . . . . . 1 Impact Weapon 1 | . . . . . . 1 Slashing Weapon . | . . . . . . . Piercing Weapon . | . . . . . . . Special Melee Weapon . | . . . . . . . Unidentified Prototypes 2 | . . . . . . 2 Parts Lost 15 | . . 1 . . . 14 Power 2 | . . 1 . . . 1 Propulsion 3 | . . . . . . 3 Utility 5 | . . . . . . 5 Weapon 5 | . . . . . . 5 Highest Loss Streak 13 | . . 1 . . . 13 To Critical Strikes . | . . . . . . . Average Backups 14 | 4 5 7 13 13 17 24 Power . | . 1 . . . 1 1 Propulsion 3 | 1 2 2 3 3 3 3 Utility 6 | . 1 2 6 7 8 10 Weapon 3 | . 1 1 3 3 4 8 Tool/Special . | . . . . . . . Unused Backups 23 | 1 . . 2 . . 20 Power 1 | . . . . . . 1 Propulsion 6 | 1 . . 1 . . 4 Utility 12 | . . . 1 . . 11 Weapon 3 | . . . . . . 3 Tool/Special 1 | . . . . . . 1 Average Slot Usage (%) 92 | . 100 99 100 100 80 80 Engine 11 | . 14 13 14 14 9 7 Treads 26 | . 28 28 28 28 27 22 Device 11 | . 13 14 14 14 9 6 Storage 11 | . 14 14 14 14 9 7 Processor 3 | . . . . . 8 6 Hackware 2 | . . . . . . 12 Energy Cannon 3 | . . . . 3 9 6 Ballistic Gun 18 | . 28 28 28 24 9 . Peak Build Rating 72 | 7 8 9 12 13 55 72 Average Rating 27 | 5 7 7 9 12 51 67 On Entrance 14 | . 7 7 9 12 13 55 Naked Turns . | . . . . . . . Heaviest Build 42 | 13 28 28 28 29 16 42 Greatest Support 60 | 40 40 40 40 40 60 60 Greatest Overweight (x) . | . . . . . . . Average Overweight (x) . | . . . . . . . Largest Inventory Capacity 40 | 8 15 15 15 15 40 40 Average Capacity 23 | 7 10 15 15 15 39 40 Most Carried 30 | 6 8 13 15 15 25 30 Average Carried 14 | 4 5 7 14 14 17 25 Final Capacity 40 | 8 15 15 15 15 40 40 Final Carried 25 | 5 6 13 15 15 25 19 Class Distribution -------------------- 62% | Mutant 25% | Hauler-Skirmisher 9% | Hauler-Assassin Dominant Class ---------------- Mutant | -10/Materials Mutant | -10/Mines Mutant | -10/Exiles Mutant | -9/Mines Hauler-Skirmisher | -8/Materials Hauler-Assassin | -7/Factory Resources | -11 -10 -10 -10 -9 -8 -7 ----------- Run | Yrd Mat Min Exi Min Mat Fac Matter Collected 731 | 312 . 185 . 10 100 124 Remotely . | . . . . . . . Salvage Created 1081 | 162 . 293 . . 154 472 Parts 79 | 13 . 24 . . 13 29 Haulers Intercepted 2 | . . . . . 1 1 Recyclers Shooed 1 | . . . . . . 1 Parts Field Recycled . | . . . . . . . Retrieved Matter . | . . . . . . . Parts Self-Destructed . | . . . . . . . Prevented . | . . . . . . . Kills | -11 -10 -10 -10 -9 -8 -7 ------- Run | Yrd Mat Min Exi Min Mat Fac Combat Hostiles Destroyed 19 | . . 10 . . 1 8 Guns 11 | . . 10 . . . 1 Cannons 1 | . . . . . 1 . AOE 6 | . . . . . . 6 Classes Destroyed 12 | 2 . 3 . . 4 3 Worker 2 | . . . . . . 2 Builder 5 | . . 1 . . . 4 Tunneler 3 | 3 . . . . . . Hauler 2 | . . . . . 1 1 Recycler 2 | 1 . . . . . 1 Operator 1 | . . . . . 1 . Watcher 3 | . . . . . 1 2 Swarmer 6 | . . 6 . . . . Grunt 10 | . . 4 . . . 6 Protector 1 | . . . . . . 1 Sentry 1 | . . . . . 1 . Programmer 1 | . . . . . . 1 Best Kill Streak 14 | 3 . 3 . . 1 14 Combat Bots Only 4 | . . 3 . . 1 4 Max Kills in Single Turn 12 | 1 . 2 . . 1 12 Gunslinging 1 | . . 1 . . . . Exploded 4 | . . . . . . 4 Melee . | . . . . . . . Uniques/NPCs Destroyed . | . . . . . . . Combat | -11 -10 -10 -10 -9 -8 -7 -------- Run | Yrd Mat Min Exi Min Mat Fac Hostile Shots Fired 197 | . 1 50 . . 4 142 Missed 49 | . 1 13 . . . 35 Hits 148 | . . 37 . . 4 107 Melee 9 | . . . . . . 9 Projectile 139 | . . 37 . . 4 98 Critical Strikes 6 | . . . . . . 6 Damage Taken 2680 | . . 390 . . 61 2229 Core 257 | . . 58 . . . 199 Absorbed by Shields . | . . . . . . . Core Remaining (%) 92 | 100 . . . 76 100 . Volleys Fired 65 | 7 . 25 . . 10 23 Largest 2 | 2 . 2 . . 2 2 Hottest 112 | 40 . 40 . . 95 112 Shots Fired 114 | 14 . 50 . . 20 30 Gun 79 | 14 . 50 . . 10 5 Cannon 23 | . . . . . 10 13 Launcher 11 | . . . . . . 11 Special 1 | . . . . . . 1 Kinetic 77 | 14 . 50 . . 10 3 Thermal 17 | . . . . . 5 12 Explosive . | . . . . . . . Electromagnetic 20 | . . . . . 5 15 Robot Hit Streak 9 | 5 . 9 . . 2 3 Robot Miss Streak 3 | 3 . 3 . . 2 3 Penetration Max . | . . . . . . . Secondary Targets 3 | . . 3 . . . . Max Gunslinging Chain 1 | . . 1 . . . . Shots Hit Robots 61 | 7 . 31 . . 8 15 Core Hits 59 | 5 . 17 . . 6 31 Critical Kills . | . . . . . . . Critical Parts Destroyed . | . . . . . . . Critical Strikes 1 | . . . . . . 1 Burn 1 | . . . . . . 1 Melee Attacks 4 | . . . . . . 4 Impact 4 | . . . . . . 4 Slashing . | . . . . . . . Piercing . | . . . . . . . Sneak Attacks . | . . . . . . . Combat Hostiles . | . . . . . . . Follow-up Attacks . | . . . . . . . Damage Inflicted 3476 | 80 . 391 . . 138 2867 Guns 590 | 80 . 391 . . 35 84 Cannons 227 | . . . . . 103 124 Explosions 2647 | . . . . . . 2647 Melee . | . . . . . . . Ramming . | . . . . . . . Kinetic 525 | 80 . 391 . . 35 19 Thermal 211 | . . . . . 75 136 Explosive 1921 | . . . . . . 1921 Electromagnetic 819 | . . . . . 28 791 Impact . | . . . . . . . Slashing . | . . . . . . . Piercing . | . . . . . . . Highest Corruption 11 | . . . . . . 11 Average Corruption 5 | . . . . . . 5 Corruption Purged . | . . . . . . . Corruption Blocked . | . . . . . . . Effects 6 | . . . . . . 6 Matter Fused 1 | . . . . . . 1 Parts Rejected 1 | . . . . . . 1 Data Loss (minor) 2 | . . . . . . 2 Misfires 1 | . . . . . . 1 Weapon Failures 1 | . . . . . . 1 Overload Shots . | . . . . . . . Overflow Damage 143 | . . . . . . 143 Projectiles . | . . . . . . . Explosions 143 | . . . . . . 143 Melee . | . . . . . . . Knockbacks . | . . . . . . . Impact . | . . . . . . . Kinetic . | . . . . . . . Secondary . | . . . . . . . Self-Inflicted Damage 298 | . . . . . . 298 Shots 12 | . . . . . . 12 Rammed . | . . . . . . . Targets Rammed . | . . . . . . . Kicked . | . . . . . . . Crushed . | . . . . . . . Highest Temperature 266 | . . 9 . . 42 266 Average Temperature 70 | . . 3 . . 22 96 Received Heat Transfer 780 | . . 141 . . 18 621 Siege Activations . | . . . . . . . Martial Activations . | . . . . . . . Shielding Activations . | . . . . . . . Robots Disrupted . | . . . . . . . Combat Hostiles . | . . . . . . . Robots Corrupted 1 | . . . . . . 1 Combat Hostiles 1 | . . . . . . 1 Parts Fried 2 | . . . . . . 2 Impact Corruptions . | . . . . . . . Robots Melted . | . . . . . . . Combat Hostiles . | . . . . . . . Parts Melted . | . . . . . . . Heat Transferred 379 | . . . . . 111 268 Parts Sabotaged . | . . . . . . . Parts Stolen . | . . . . . . . Parts Stripped . | . . . . . . . Power Chain Reactions . | . . . . . . . Alert | -11 -10 -10 -10 -9 -8 -7 ------- Run | Yrd Mat Min Exi Min Mat Fac Maximum Alert Level 2 | . . . . . . 2 Low Security (%) 95 | 100 100 100 . 100 100 81 Level 1 3 | . . . . . . 13 Level 2 1 | . . . . . . 5 Level 3 . | . . . . . . . Level 4 . | . . . . . . . Level 5 . | . . . . . . . High Security . | . . . . . . . Max Security . | . . . . . . . Peak Influence 454 | 10 7 80 . . 89 454 Initial 1 | . . 1 . . . . Average 26 | 1 . 28 . . 25 55 Influence Increases 1090 | 20 13 260 . . 220 577 Destroy 0b10 Robot/C 440 | . . 200 . . 100 140 Destroy 0b10 Robot/NC 95 | 20 . 5 . . 15 55 Destroy Leader 120 | . . 40 . . 44 36 Allied During Kill 17 | . . . . . 17 . Successful Hack 37 | . 13 . . . 12 12 Disable Machine 165 | . . . . . 30 135 Anti-Garrison Action 150 | . . . . . . 150 Destroy Structure 51 | . . . . . 2 49 Lose Combat Pursuer 15 | . . 15 . . . . Influence Decreases 717 | 20 7 266 . . 220 204 Entered New Map 5 | . . 5 . . . . Time Decay 502 | 20 7 251 . . 160 64 Lost Part 150 | . . 10 . . . 140 Lost Ally 60 | . . . . . 60 . Squads Dispatched 9 | . . 1 . . 1 7 Investigation 3 | . . 1 . . . 2 Extermination 1 | . . . . . . 1 Reinforcement 3 | . . . . . 1 2 Assault 2 | . . . . . . 2 Garrison . | . . . . . . . Intercept . | . . . . . . . Searches Triggered . | . . . . . . . Construction Impeded 1 | . . . . . . 1 Haulers Reinforced . | . . . . . . . Active Scanning Responses . | . . . . . . . Cargo Convoy Interrupts . | . . . . . . . Stealth | -11 -10 -10 -10 -9 -8 -7 --------- Run | Yrd Mat Min Exi Min Mat Fac Distress Signals 1 | . . . . . 1 . Communications Jammed . | . . . . . . . Distress Signals . | . . . . . . . Times Spotted 42 | . 3 11 . . 11 17 Peak Tracking Total 14 | . 4 3 . . 3 14 Tactical Retreats 1 | . . 1 . . . . Traps | -11 -10 -10 -10 -9 -8 -7 ------- Run | Yrd Mat Min Exi Min Mat Fac Traps Triggered . | . . . . . . . Indirectly . | . . . . . . . Trap Hack Attempts . | . . . . . . . Triggered . | . . . . . . . Disarmed . | . . . . . . . Reprogrammed . | . . . . . . . Reused . | . . . . . . . Traps Extracted . | . . . . . . . Installed . | . . . . . . . Triggered . | . . . . . . . Machines | -11 -10 -10 -10 -9 -8 -7 ---------- Run | Yrd Mat Min Exi Min Mat Fac Machines Disabled 12 | . . . . . 2 10 Max in Single Turn 5 | . . . . . . 5 Garrison Access 2 | . . . . . . 2 Machines Repaired . | . . . . . . . Machines Dismantled . | . . . . . . . Machines Sabotaged . | . . . . . . . Overloaded Fab Kills . | . . . . . . . Hacking | -11 -10 -10 -10 -9 -8 -7 --------- Run | Yrd Mat Min Exi Min Mat Fac Machines Accessed 12 | . 2 1 2 . 2 5 Terminals 6 | . 2 . . . 2 2 Fabricators 1 | . . . . . . 1 Repair Stations . | . . . . . . . Recycling Units . | . . . . . . . Scanalyzers . | . . . . . . . Garrison Access 2 | . . . . . . 2 Total Hacks 50 | . 7 1 24 . 7 11 Successful 32 | . 3 1 24 . 2 2 Failed 18 | . 4 . . . 5 9 Catastrophic 5 | . . . . . 3 2 Database Lockouts . | . . . . . . . Manual 13 | . 5 . 1 . 7 . Terminals 19 | . 7 . . . 7 5 Fabricators 1 | . . . . . . 1 Repair Stations . | . . . . . . . Recycling Units . | . . . . . . . Scanalyzers . | . . . . . . . Garrison Access 5 | . . . . . . 5 Terminal Hacks 29 | . 2 1 24 . 1 1 Record 23 | . . . 23 . . . Part Schematic 2 | . 2 . . . . . Open Door 1 | . . 1 . . . . Branch Access Points 1 | . . . . . . 1 Zone Layout 1 | . . . . . 1 . Proto ID Catalog 1 | . . . 1 . . . Fabricator Hacks . | . . . . . . . Repair Station Hacks . | . . . . . . . Recycling Unit Hacks . | . . . . . . . Scanalyzer . | . . . . . . . Garrison Access Hacks 1 | . . . . . . 1 Seal Access 1 | . . . . . . 1 Unauthorized Hacks 2 | . 1 . . . 1 . Terminals 2 | . 1 . . . 1 . Botnet 2 | . 1 . . . 1 . Fabricators . | . . . . . . . Repair Stations . | . . . . . . . Recycling Units . | . . . . . . . Scanalyzers . | . . . . . . . Garrison Access . | . . . . . . . Data Cores Recovered . | . . . . . . . Used . | . . . . . . . Hacking Detections 8 | . 2 . . . 2 4 Full Trace Events 3 | . 1 . . . . 2 Feedback Events . | . . . . . . . Feedback Blocked . | . . . . . . . Robot Schematics Acquired . | . . . . . . . Robots Built . | . . . . . . . Authchips . | . . . . . . . Time . | . . . . . . . Total Robot Build Rating . | . . . . . . . Part Schematics Acquired 2 | . 2 . . . . . Parts Built . | . . . . . . . Authchips . | . . . . . . . Time . | . . . . . . . Total Part Build Rating . | . . . . . . . Parts Repaired . | . . . . . . . Time . | . . . . . . . Parts Recycled . | . . . . . . . Recycled Matter . | . . . . . . . Retrieved Matter . | . . . . . . . Retrieved Components . | . . . . . . . Parts Scanalyzed . | . . . . . . . Part Schematics Acquired . | . . . . . . . Parts Damaged . | . . . . . . . Bothacking | -11 -10 -10 -10 -9 -8 -7 ------------ Run | Yrd Mat Min Exi Min Mat Fac Used RIF Installer . | . . . . . . . Robots Hacked . | . . . . . . . Non-combat . | . . . . . . . Combat . | . . . . . . . Robot Hacks Applied . | . . . . . . . Relay Couplers Released 1 | . . . . . . 1 Machine Destruction 1 | . . . . . . 1 Fabnet Peak Effective % . | . . . . . . . Robots Rewired . | . . . . . . . Allies Hacked . | . . . . . . . Hacks Repelled . | . . . . . . . Allies | -11 -10 -10 -10 -9 -8 -7 -------- Run | Yrd Mat Min Exi Min Mat Fac Total Allies 3 | . . . . 3 . . Largest Group 3 | . . . . 3 3 . Highest-Rated Group 40 | . . . . 40 40 . Highest-Rated Ally 16 | . . . . 16 16 . Total Orders . | . . . . . . . Ally Attacks 30 | . . . . . 30 . Total Damage 360 | . . . . . 360 . Kills 4 | . . . . . 4 . Allies Corrupted . | . . . . . . . Allies Melted . | . . . . . . . Intel | -11 -10 -10 -10 -9 -8 -7 ------- Run | Yrd Mat Min Exi Min Mat Fac Active Infowar (turns) 3349 | 87 151 789 621 441 617 643 Terrain 1257 | . . . . . 614 643 Seismic 2092 | 87 151 789 621 441 3 . Robot Analysis Total . | . . . . . . . Derelict Logs Recovered 3 | . . 1 . 2 . . Drone Launches . | . . . . . . . Drone Recoveries . | . . . . . . . Exploration | -11 -10 -10 -10 -9 -8 -7 ------------- Run | Yrd Mat Min Exi Min Mat Fac Turns Passed 3482 | 180 159 789 621 441 618 674 Spaces Moved 1869 | 96 89 417 387 244 325 311 Core 13 | 13 . . . . . . Treads 1856 | 83 89 417 387 244 325 311 Legs . | . . . . . . . Wheels . | . . . . . . . Hover . | . . . . . . . Flight . | . . . . . . . Fastest Speed 50 | 50 160 160 160 160 163 160 Average Speed 161 | 145 160 160 160 160 167 163 Slowest Speed 170 | 160 160 160 160 160 170 170 Overloaded Moves . | . . . . . . . Propulsion Burnouts . | . . . . . . . Robots Hopped . | . . . . . . . Potential Cave-ins . | . . . . . . . Cave-ins Triggered . | . . . . . . . Exploration Rate (%) 39 | 4 21 80 70 63 25 13 Regions Visited 6 Branch Regions 3 Pre-discovered Areas 2 | . . 1 1 . . . Known Exits Taken 1 | . 1 . . . . . Unknown Exits Taken 5 | 1 . 1 1 1 1 . Scrap Searched 2 | . . 1 . 1 . . Spaces Dug 4 | . . . . . . 4 Terrain Destroyed 53 | . . . . . 1 52 Melee 4 | . . . . . . 4 Projectile 1 | . . . . . 1 . AOE 48 | . . . . . . 48 Terrain Rammed . | . . . . . . . Walls Destroyed . | . . . . . . . Machines Disabled . | . . . . . . . Actions | -11 -10 -10 -10 -9 -8 -7 --------- Run | Yrd Mat Min Exi Min Mat Fac Total 2222 | 123 105 489 390 295 383 437 Wait 166 | . 10 39 . 47 15 55 Move 1863 | 95 88 416 386 243 324 311 Hop . | . . . . . . . Pick Up 61 | 13 3 8 2 1 21 13 Fast Attach 1 | . . . . 1 . . Attach 25 | 7 . 1 . . 5 12 Detach . | . . . . . . . Swap 18 | . 3 . . 1 3 11 Drop 19 | 1 1 . 2 2 5 8 Fire 65 | 7 . 25 . . 10 23 Melee 4 | . . . . . . 4 Ram . | . . . . . . . Kick . | . . . . . . . Crush . | . . . . . . . Escape Stasis . | . . . . . . . Rewire . | . . . . . . . Trap . | . . . . . . . Miscellaneous . | . . . . . . . Route ------- -11/Scrapyard -10/Materials -10/Mines (discovered 3 exits: [*Mat x2] / *Exi) -10/Exiles -9/Mines -8/Materials -7/Factory (discovered 2 exits: Low x2) History --------- Turn | Location | Event 6 | -11/Scrapyard | Discovered new exit (range 13) 181 | -11/Scrapyard | Entered Materials 259 | -10/Materials | Discovered new exit (range 14) 314 | -10/Materials | Build established: Mutant 321 | -10/Materials | Identified exit to Mines 340 | -10/Materials | Entered Mines 433 | -10/Mines | Discovered new exit (range 11) 498 | -10/Mines | Discovered new exit (range 14) 983 | -10/Mines | Met a Derelict shopkeep closing up shop 1045 | -10/Mines | Learned location of Zion (-6) 1121 | -10/Mines | Deemed a non-threat by the Exiles lab entrance 1123 | -10/Mines | Discovered new exit (range 5) 1129 | -10/Mines | Entered Exiles 1169 | -10/Exiles | Met 8R-AWN 1197 | -10/Exiles | Met EX-HEX 1285 | -10/Exiles | Met EX-DEC 1500 | -10/Exiles | Met EX-BIN 1522 | -10/Exiles | Aligned with FarCom system 1524 | -10/Exiles | Given EX-Vault access code 1561 | -10/Exiles | Opened EX-Vault 1578 | -10/Exiles | Found Lightpack 2.0 1617 | -10/Exiles | Warned to stay clear of 0b10 Research branches 1628 | -10/Exiles | Exiles lab attacked by MAIN.C 1737 | -10/Exiles | Discovered new exit (range 10) 1750 | -10/Exiles | Left Exiles lab with Lightpack 2.0 1750 | -10/Exiles | Entered Mines 1767 | -9/Mines | Learned Materials interactive machine intel 1960 | -9/Mines | Learned Materials trap positions 1976 | -9/Mines | A weapon hastily lodged in a ceiling crevice suddenly fell to the ground 2124 | -9/Mines | Assisted by bots powering up and referring to "LRC-V3" 2162 | -9/Mines | Discovered new exit (range 16) 2191 | -9/Mines | Entered Materials 2191 | -8/Materials | Accompanied by 3 allies 2191 | -8/Materials | Evolved 4 slots: Propulsion x1, Utility x3 2192 | -8/Materials | Loaded intel: 11 trap records 2193 | -8/Materials | Loaded intel: 19 interactive machine locations 2382 | -8/Materials | Discovered new exit (range 10) 2495 | -8/Materials | Build established: Hauler-Skirmisher 2809 | -8/Materials | Entered Factory 2809 | -7/Factory | Evolved 2 slots: Utility x2 3275 | -7/Factory | Identified exit to Lower Caves 3336 | -7/Factory | Build established: Hauler-Assassin 3482 | -7/Factory | System corruption reached 10% 3483 | -7/Factory | Self-destructed Last Messages --------------- 03478_ K-01 Serf collects debris. 03478_ G-50 Soldier misfires. 03478_ U-05 Engineer lays Concrete. 03479_ U-05 Engineer builds a Wall. 03479_ R-06 Scavenger collects Corrupted Remote Force Field. 03479_ G-47 Trooper IFF system glitched. 03479_ U-05 Engineer lays Concrete. 03480_ Arm. Treads destroyed. 03480_ Imp. Light Armor Plating destroyed. 03481_ U-05 Engineer lays Concrete. 03481_ K-01 Serf collects debris. 03481_ Shock Bomb Launcher destroyed. 03481_ Hvy. Ion Engine destroyed. 03481_ Hacking Suite destroyed. 03481_ System corrupted by crushing effect (+1). 03482_ U-05 Engineer lays Concrete. 03482_ G-47 Trooper destroyed. 03483_ U-05 Engineer lays Concrete. Map ----- +----------------------------------------------------+ | ?????????????????????????????????????????????????? | | ?????????????????????????????????????????????????? | | ?????????????????????????????????????????????????? | | ?????????????????????????????????????????????????? | | ?????????????????????????????????????????????????? | | ?????????????????????????????????????????????????? | | ?????????????????????????????????????????????????? | | ?????????????????????????????????????????????????? | | ?????????????????????????????????????????????????? | | ?????????????????????????????????????????????????? | | ?????????????????????????????????????????????????? | | ?????????????????????????????????????????????????? | | ?????????????????????????????????????????????????? | | ?????????????????????????????????????????????????? | | ????????????????????????????????????? ???????????? | | ???????????????????????????? ?????? ?? ??? ??????? | | ??????????????????????????#?? ? ?? ?""? "?????? | | ?????????????????????????###???? ????? """ ""????? | | ????????????????????????#? ? ??""""?? ??? | | ?????????????????????????#???? ?"?"?? ! ? ???? | | ????????????????????????#????? "?"? ? % ? ? ?? | | ????????????????????????###??? ??"" ? #??##?#? | | ??????????????????????? ??#?##?####?? #####??? | | ????????????????????? ???#?######?## # | | ???????????????###################### + """""" | | ?????????? @l% # ?? | | ?????????? b! gr # """""" | | ?????????? gg = i # | | ??????????? !// =%| #######? | | ??????????? /%/ [ ####### | | ????????????##+###### !// = # | | ????????????????????# %= k # | | ????????????????? =[ # | | ????????????????? %! # | | ????????????????"" !# # # | | ?????????????????" u % # | | ?????????????????##### # | | ??????????????????? # u # | | ??????????????????? # """"" # = % | | ?????????????????????# """"" + %* | | ?????????????????????# ?? #% % ! % | | ?????????????????????#? ?""" # % ! | | ?????????????????????#????"" # ################### | | ???????????????????????"?"""?# ## = ] | | ??????????????????????????? ?# ##? # | | ?????????????????????????##??? ?# # % | | ?????????????????????????? ??? # # | | ??????????????????????? ??? ??? # # """ | | ??????????????????????????? ??+ # """ | | ????????????????????????????? ???? # """ | +----------------------------------------------------+ Best States ------------- Heat Dissipation 34 Energy Generation 14 Energy Capacity 280 Matter Stores 300 Matter Capacity 300 Sight Range 16 Terrain Scan Range 16 Terrain Scan Density 210 Armor Coverage 750 Evasion (%) 50 Recoil Reduction 3 Offensive Hacking 20 Item Schematics ----------------- Cargo Storage Unit | -10/Materials | Hacked Huge Storage Unit | -10/Materials | Hacked Robot Schematics ------------------ None Fabricated ------------ Nothing Repaired ---------- Nothing Alien Tech Used ----------------- None Achievements -------------- None Challenges ------------ None Game ------ Seed AntimatterStealthBlasthammer Manual? 0 Play Time 00:25:02 Cumulative 174.9 hours Start 2025.08.20 @ 14:10:11 End 2025.08.20 @ 17:08:41 Sessions 4 Manual Loads 0 Difficulty Rogue Special Mode None Game No. 276 Rogue 276 Adventurer 0 Explorer 0 Win Type - Total 3 Types 2/0/1/0/0/0/0/0/0/0 Lore% 78 Gallery% 74 Achievement% 54 Wizard Run 0 Options --------- Layout 1 ASCII 0 Keyboard 0 Movement Mouse Keybinds 0 Fullscreen 1 Font 24/Smallcaps Map View 50x40 Zoom Use 0% Tactical HUD 1 Map Filters NONE Filters NONE Steam 1 RUN: be769284-47f3-4ff0-a0ab-22369127fc0b